[Event "*** Titled Tuesday Blitz"]
[Site "Chess.com"]
[Date "2020.11.24"]
[Round "5"]
[White "serhanberat_ozdemir"]
[Black "HouseOfDurin"]
[Result "1-0"]
[WhiteElo "2341"]
[BlackElo "2131"]
[TimeControl "180+1"]
[EndTime "11:13:02 PST"]
[Termination "serhanberat_ozdemir won by checkmate"]

1. e4 {[%clk 0:03:00.9]} 1... c5 {[%clk 0:02:59.9]} 2. Nf3 {[%clk 0:03:00.3]}
2... Nc6 {[%clk 0:03:00.4]} 3. Bb5 {[%clk 0:03:00]} 3... g6 {[%clk 0:03:00.1]}
4. Bxc6 {[%clk 0:02:57]} 4... dxc6 {[%clk 0:03:01]} 5. O-O {[%clk 0:02:56.2]}
5... Bg7 {[%clk 0:03:01.5]} 6. d3 {[%clk 0:02:53.1]} 6... h6 {[%clk 0:03:00.2]}
7. Nbd2 {[%clk 0:02:43.1]} 7... e5 {[%clk 0:03:00]} 8. a3 {[%clk 0:02:40.6]}
8... a5 {[%clk 0:02:57.7]} 9. a4 {[%clk 0:02:34]} 9... Ne7 {[%clk 0:02:55.7]}
10. Nc4 {[%clk 0:02:34.3]} 10... Qc7 {[%clk 0:02:54.2]} 11. b3 {[%clk
0:02:24.9]} 11... Be6 {[%clk 0:02:51.1]} 12. Be3 {[%clk 0:02:22.9]} 12... b6
{[%clk 0:02:45.2]} 13. Nfd2 {[%clk 0:02:11.9]} 13... f5 {[%clk 0:02:41.4]} 14.
f4 {[%clk 0:02:03]} 14... O-O-O {[%clk 0:02:20.7]} 15. fxe5 {[%clk 0:01:53]}
15... Bxc4 {[%clk 0:02:18.5]} 16. Nxc4 {[%clk 0:01:53.9]} 16... Bxe5 {[%clk
0:02:17.3]} 17. Nxe5 {[%clk 0:01:49.8]} 17... Qxe5 {[%clk 0:02:18.2]} 18. Bf4
{[%clk 0:01:00.6]} 18... Qd4+ {[%clk 0:02:17.8]} 19. Kh1 {[%clk 0:01:01.2]}
19... fxe4 {[%clk 0:02:17.8]} 20. Qg4+ {[%clk 0:01:01.1]} 20... Qd7 {[%clk
0:01:40.3]} 21. Qxd7+ {[%clk 0:00:57.6]} 21... Rxd7 {[%clk 0:01:41.2]} 22. dxe4
{[%clk 0:00:58.3]} 22... g5 {[%clk 0:01:37.3]} 23. Be5 {[%clk 0:00:53.9]} 23...
Re8 {[%clk 0:01:36.9]} 24. Bc3 {[%clk 0:00:50]} 24... Ng6 {[%clk 0:01:32.3]} 25.
Rae1 {[%clk 0:00:50.5]} 25... Rde7 {[%clk 0:01:11.5]} 26. Rf6 {[%clk 0:00:42.2]}
26... Re6 {[%clk 0:01:11.7]} 27. Rxe6 {[%clk 0:00:29.2]} 27... Rxe6 {[%clk
0:01:12.6]} 28. g3 {[%clk 0:00:27.7]} 28... Kc7 {[%clk 0:00:55.3]} 29. Kg2
{[%clk 0:00:25.9]} 29... Ne5 {[%clk 0:00:47.1]} 30. Bxe5+ {[%clk 0:00:23.5]}
30... Rxe5 {[%clk 0:00:48]} 31. Kf3 {[%clk 0:00:23.1]} 31... c4 {[%clk
0:00:46.4]} 32. Ke3 {[%clk 0:00:14.7]} 32... cxb3 {[%clk 0:00:45.8]} 33. cxb3
{[%clk 0:00:15.6]} 33... b5 {[%clk 0:00:45.7]} 34. Rf1 {[%clk 0:00:09.6]} 34...
Re6 {[%clk 0:00:38.7]} 35. axb5 {[%clk 0:00:06.5]} 35... cxb5 {[%clk 0:00:39.6]}
36. Kd4 {[%clk 0:00:06]} 36... Kb6 {[%clk 0:00:33.2]} 37. e5 {[%clk 0:00:05.9]}
37... Kc6 {[%clk 0:00:28.9]} 38. Rf8 {[%clk 0:00:02.4]} 38... a4 {[%clk
0:00:27.6]} 39. bxa4 {[%clk 0:00:02.1]} 39... bxa4 {[%clk 0:00:28.5]} 40. Ra8
{[%clk 0:00:02.4]} 40... Kb5 {[%clk 0:00:28.7]} 41. Rb8+ {[%clk 0:00:02.8]}
41... Kc6 {[%clk 0:00:27.8]} 42. Ra8 {[%clk 0:00:02.6]} 42... Kb5 {[%clk
0:00:27.8]} 43. Kd5 {[%clk 0:00:03.2]} 43... Rg6 {[%clk 0:00:15.6]} 44. e6
{[%clk 0:00:03.1]} 44... Rg7 {[%clk 0:00:14.3]} 45. Kd6 {[%clk 0:00:03.1]} 45...
Kb4 {[%clk 0:00:13.9]} 46. e7 {[%clk 0:00:02.7]} 46... Rg6+ {[%clk 0:00:13.2]}
47. Kd7 {[%clk 0:00:02.9]} 47... Rg7 {[%clk 0:00:13.8]} 48. Kd8 {[%clk
0:00:03.4]} 48... Rxe7 {[%clk 0:00:12.6]} 49. Kxe7 {[%clk 0:00:03.4]} 49... a3
{[%clk 0:00:13.5]} 50. Ra6 {[%clk 0:00:02.2]} 50... h5 {[%clk 0:00:14.4]} 51.
Kf6 {[%clk 0:00:02.1]} 51... h4 {[%clk 0:00:15.1]} 52. Kxg5 {[%clk 0:00:02.4]}
52... hxg3 {[%clk 0:00:15]} 53. hxg3 {[%clk 0:00:03.3]} 53... Kb3 {[%clk
0:00:14.9]} 54. Rxa3+ {[%clk 0:00:03.7]} 54... Kxa3 {[%clk 0:00:14.8]} 55. Kf6
{[%clk 0:00:04.6]} 55... Kb4 {[%clk 0:00:15.6]} 56. g4 {[%clk 0:00:05.5]} 56...
Kc5 {[%clk 0:00:16.3]} 57. g5 {[%clk 0:00:06.4]} 57... Kd6 {[%clk 0:00:17.2]}
58. g6 {[%clk 0:00:07.3]} 58... Kd7 {[%clk 0:00:18.1]} 59. g7 {[%clk 0:00:08.2]}
59... Kd6 {[%clk 0:00:19]} 60. g8=Q {[%clk 0:00:08.6]} 60... Kc5 {[%clk
0:00:18.8]} 61. Qe6 {[%clk 0:00:09]} 61... Kd4 {[%clk 0:00:19.7]} 62. Qe5+
{[%clk 0:00:09.2]} 62... Kc4 {[%clk 0:00:19.7]} 63. Kf5 {[%clk 0:00:10.1]} 63...
Kd3 {[%clk 0:00:19.2]} 64. Kf4 {[%clk 0:00:09.5]} 64... Kc4 {[%clk 0:00:19.4]}
65. Ke4 {[%clk 0:00:09.5]} 65... Kb3 {[%clk 0:00:19.1]} 66. Qc5 {[%clk
0:00:09.1]} 66... Kb2 {[%clk 0:00:18.6]} 67. Kd3 {[%clk 0:00:09.2]} 67... Kb3
{[%clk 0:00:19.1]} 68. Qb5+ {[%clk 0:00:09.5]} 68... Ka2 {[%clk 0:00:19.5]} 69.
Kc3 {[%clk 0:00:09.6]} 69... Ka1 {[%clk 0:00:20.4]} 70. Qb2# {[%clk 0:00:09.6]}
1-0

[Event "*** Titled Tuesday Blitz"]
[Site "Chess.com"]
[Date "2020.11.24"]
[Round "5"]
[White "Fh2411"]
[Black "ChessQueen"]
[Result "1-0"]
[WhiteElo "2552"]
[BlackElo "2733"]
[TimeControl "180+1"]
[EndTime "11:13:03 PST"]
[Termination "Fh2411 won by resignation"]

1. d4 {[%clk 0:02:57.7]} 1... Nf6 {[%clk 0:02:56.9]} 2. Nf3 {[%clk 0:02:57.7]}
2... b6 {[%clk 0:02:54.4]} 3. g3 {[%clk 0:02:57.1]} 3... Bb7 {[%clk 0:02:54.4]}
4. Bg2 {[%clk 0:02:58]} 4... g6 {[%clk 0:02:49.5]} 5. O-O {[%clk 0:02:57.9]}
5... Bg7 {[%clk 0:02:50.2]} 6. a4 {[%clk 0:02:48.8]} 6... O-O {[%clk 0:02:41.7]}
7. a5 {[%clk 0:02:47.9]} 7... c5 {[%clk 0:02:33.7]} 8. axb6 {[%clk 0:02:29.1]}
8... axb6 {[%clk 0:02:33.3]} 9. Rxa8 {[%clk 0:02:30]} 9... Bxa8 {[%clk
0:02:33.4]} 10. c3 {[%clk 0:02:30.1]} 10... d6 {[%clk 0:02:19.3]} 11. Na3 {[%clk
0:02:23.6]} 11... Nbd7 {[%clk 0:02:18.1]} 12. Bg5 {[%clk 0:02:13.8]} 12... Bc6
{[%clk 0:02:15]} 13. Nd2 {[%clk 0:01:56.8]} 13... Bxg2 {[%clk 0:02:07.7]} 14.
Kxg2 {[%clk 0:01:57.6]} 14... Qa8+ {[%clk 0:02:07.7]} 15. Nf3 {[%clk 0:01:53.1]}
15... Rb8 {[%clk 0:02:04.9]} 16. Nb5 {[%clk 0:01:47.9]} 16... Qa2 {[%clk
0:01:59.8]} 17. Qc2 {[%clk 0:01:25.7]} 17... Qd5 {[%clk 0:01:59.5]} 18. c4
{[%clk 0:01:21]} 18... Qe4 {[%clk 0:01:31.5]} 19. Qxe4 {[%clk 0:01:18]} 19...
Nxe4 {[%clk 0:01:31.7]} 20. Bxe7 {[%clk 0:00:46.9]} 20... Re8 {[%clk 0:01:31.4]}
21. Bxd6 {[%clk 0:00:46.2]} 21... Nxd6 {[%clk 0:01:30.3]} 22. Nxd6 {[%clk
0:00:47.1]} 22... Rxe2 {[%clk 0:01:30.4]} 23. Re1 {[%clk 0:00:40.8]} 23... Rxe1
{[%clk 0:01:27.4]} 24. Nxe1 {[%clk 0:00:41.7]} 24... Bxd4 {[%clk 0:01:16.8]} 25.
b3 {[%clk 0:00:40.9]} 25... f5 {[%clk 0:01:16.7]} 26. Nd3 {[%clk 0:00:31.8]}
26... Kf8 {[%clk 0:01:16.1]} 27. h3 {[%clk 0:00:25.9]} 27... Ke7 {[%clk
0:01:16.1]} 28. Nb5 {[%clk 0:00:25.5]} 28... Ba1 {[%clk 0:01:08.2]} 29. Kf3
{[%clk 0:00:25.3]} 29... Nf6 {[%clk 0:00:43.2]} 30. Nf4 {[%clk 0:00:24.4]} 30...
Kd7 {[%clk 0:00:40.6]} 31. Nd5 {[%clk 0:00:24.3]} 31... Nxd5 {[%clk 0:00:36.5]}
32. cxd5 {[%clk 0:00:25.2]} 32... Be5 {[%clk 0:00:33.6]} 33. g4 {[%clk
0:00:25.1]} 33... Ke7 {[%clk 0:00:27.1]} 34. gxf5 {[%clk 0:00:18]} 34... gxf5
{[%clk 0:00:27.4]} 35. Ke3 {[%clk 0:00:17.7]} 35... Kd7 {[%clk 0:00:27.2]} 36.
f4 {[%clk 0:00:15.9]} 36... Bb8 {[%clk 0:00:22.5]} 37. Kf3 {[%clk 0:00:16]}
37... Ke7 {[%clk 0:00:21]} 38. Kg3 {[%clk 0:00:13.8]} 38... Kf6 {[%clk
0:00:17.8]} 39. Kf3 {[%clk 0:00:14.2]} 39... Ke7 {[%clk 0:00:18.2]} 40. Kg3
{[%clk 0:00:14.2]} 40... Kd7 {[%clk 0:00:17.3]} 41. Kf3 {[%clk 0:00:14.7]} 41...
Kc8 {[%clk 0:00:13.7]} 42. Kg3 {[%clk 0:00:14]} 42... Kb7 {[%clk 0:00:12.8]} 43.
Na3 {[%clk 0:00:05.5]} 43... Ka6 {[%clk 0:00:11.1]} 44. Nc4 {[%clk 0:00:05.7]}
44... b5 {[%clk 0:00:11.6]} 45. Ne3 {[%clk 0:00:05.7]} 45... Ka5 {[%clk
0:00:08.6]} 46. Nxf5 {[%clk 0:00:06]} 46... c4 {[%clk 0:00:04]} 47. bxc4 {[%clk
0:00:05.3]} 47... bxc4 {[%clk 0:00:04.3]} 48. d6 {[%clk 0:00:05.4]} 48... c3
{[%clk 0:00:04.3]} 49. d7 {[%clk 0:00:05.3]} 49... Bc7 {[%clk 0:00:04.3]} 50.
Nd4 {[%clk 0:00:05.2]} 50... Kb4 {[%clk 0:00:03.1]} 51. Kf3 {[%clk 0:00:05.7]}
51... Kc4 {[%clk 0:00:03.5]} 52. Ke4 {[%clk 0:00:06.3]} 52... Kc5 {[%clk
0:00:02.9]} 53. Kd3 {[%clk 0:00:04]} 53... Kd6 {[%clk 0:00:03.3]} 54. Kxc3
{[%clk 0:00:03.8]} 54... Kxd7 {[%clk 0:00:03.9]} 55. f5 {[%clk 0:00:04.7]} 55...
Ke7 {[%clk 0:00:04.2]} 56. Kd3 {[%clk 0:00:05.1]} 56... Kf6 {[%clk 0:00:04.9]}
57. Ke4 {[%clk 0:00:06]} 57... Bb6 {[%clk 0:00:05.2]} 58. Nf3 {[%clk 0:00:06.3]}
58... Bc7 {[%clk 0:00:05.3]} 59. Nd4 {[%clk 0:00:05.8]} 59... Bd6 {[%clk
0:00:05.7]} 60. Ne6 {[%clk 0:00:06]} 60... Bb8 {[%clk 0:00:05.6]} 61. Nf8 {[%clk
0:00:05.9]} 61... h5 {[%clk 0:00:05.1]} 62. Nd7+ {[%clk 0:00:05.9]} 1-0

[Event "*** Titled Tuesday Blitz"]
[Site "Chess.com"]
[Date "2020.11.24"]
[Round "5"]
[White "vinniethepooh"]
[Black "Sanan_Sjugirov"]
[Result "1/2-1/2"]
[WhiteElo "2618"]
[BlackElo "2911"]
[TimeControl "180+1"]
[EndTime "11:13:04 PST"]
[Termination "Game drawn - insufficient material"]

1. d4 {[%clk 0:03:00.9]} 1... Nf6 {[%clk 0:02:56.2]} 2. c4 {[%clk 0:03:01.4]}
2... e6 {[%clk 0:02:56.1]} 3. Nc3 {[%clk 0:03:02]} 3... Bb4 {[%clk 0:02:55.4]}
4. f3 {[%clk 0:03:02.6]} 4... c5 {[%clk 0:02:40.1]} 5. d5 {[%clk 0:03:01.8]}
5... b5 {[%clk 0:02:27.3]} 6. e4 {[%clk 0:03:02.1]} 6... d6 {[%clk 0:02:23.1]}
7. Bd3 {[%clk 0:03:01.5]} 7... O-O {[%clk 0:02:08]} 8. Ne2 {[%clk 0:03:00.1]}
8... bxc4 {[%clk 0:01:51.1]} 9. Bxc4 {[%clk 0:03:01]} 9... exd5 {[%clk
0:01:47.9]} 10. Bxd5 {[%clk 0:03:01.5]} 10... Nxd5 {[%clk 0:01:47.7]} 11. Qxd5
{[%clk 0:03:02.4]} 11... Qb6 {[%clk 0:01:44.8]} 12. Bg5 {[%clk 0:02:53.8]} 12...
Nc6 {[%clk 0:01:40.1]} 13. O-O {[%clk 0:02:38.7]} 13... Be6 {[%clk 0:01:39]} 14.
Qd2 {[%clk 0:02:34.6]} 14... Rab8 {[%clk 0:01:13.1]} 15. Rfd1 {[%clk 0:02:26.8]}
15... Ne5 {[%clk 0:00:54.3]} 16. Kh1 {[%clk 0:02:16.5]} 16... Nc4 {[%clk
0:00:53.7]} 17. Qc1 {[%clk 0:02:16.2]} 17... Bxc3 {[%clk 0:00:51.7]} 18. bxc3
{[%clk 0:02:08.3]} 18... Qb2 {[%clk 0:00:50.1]} 19. Nf4 {[%clk 0:01:49.2]} 19...
Rfe8 {[%clk 0:00:28.5]} 20. h3 {[%clk 0:01:35.3]} 20... Qxc1 {[%clk 0:00:27.2]}
21. Rdxc1 {[%clk 0:01:24.4]} 21... h6 {[%clk 0:00:25.1]} 22. Bh4 {[%clk
0:01:19.9]} 22... g5 {[%clk 0:00:25]} 23. Nxe6 {[%clk 0:01:19.7]} 23... fxe6
{[%clk 0:00:25.3]} 24. Bg3 {[%clk 0:01:09.9]} 24... Rb2 {[%clk 0:00:25.3]} 25.
Rab1 {[%clk 0:01:04.9]} 25... Reb8 {[%clk 0:00:25.2]} 26. Rxb2 {[%clk
0:01:04.3]} 26... Rxb2 {[%clk 0:00:26.1]} 27. h4 {[%clk 0:00:51.7]} 27... e5
{[%clk 0:00:24.6]} 28. hxg5 {[%clk 0:00:49.2]} 28... hxg5 {[%clk 0:00:25.5]} 29.
Kh2 {[%clk 0:00:43.5]} 29... Kf7 {[%clk 0:00:23.3]} 30. Kh3 {[%clk 0:00:40.3]}
30... Kg6 {[%clk 0:00:22.8]} 31. a4 {[%clk 0:00:38.3]} 31... a5 {[%clk
0:00:22.2]} 32. Rd1 {[%clk 0:00:37.1]} 32... Rb3 {[%clk 0:00:20.5]} 33. Be1
{[%clk 0:00:23.6]} 33... Rb8 {[%clk 0:00:19.4]} 34. Kg3 {[%clk 0:00:21]} 34...
Rb2 {[%clk 0:00:19.4]} 35. Bf2 {[%clk 0:00:19.5]} 35... Kf6 {[%clk 0:00:14.4]}
36. Rh1 {[%clk 0:00:17.9]} 36... Kg7 {[%clk 0:00:14.5]} 37. Rd1 {[%clk
0:00:12.8]} 37... Kg6 {[%clk 0:00:13.2]} 38. Rd3 {[%clk 0:00:06.6]} 38... Rd2
{[%clk 0:00:09.8]} 39. Rxd2 {[%clk 0:00:05.9]} 39... Nxd2 {[%clk 0:00:10.7]} 40.
Be3 {[%clk 0:00:05.6]} 40... Nc4 {[%clk 0:00:10.5]} 41. Bc1 {[%clk 0:00:05.5]}
41... Kh5 {[%clk 0:00:09.8]} 42. Kf2 {[%clk 0:00:04.6]} 42... Nb6 {[%clk
0:00:09.8]} 43. Bd2 {[%clk 0:00:04.3]} 43... Nxa4 {[%clk 0:00:08.3]} 44. c4
{[%clk 0:00:04.1]} 44... Nb6 {[%clk 0:00:07.8]} 45. Bxa5 {[%clk 0:00:04]} 45...
Nxc4 {[%clk 0:00:08.4]} 46. Bc7 {[%clk 0:00:04.8]} 46... g4 {[%clk 0:00:08.6]}
47. Ke2 {[%clk 0:00:03.3]} 47... Kg5 {[%clk 0:00:08.3]} 48. Kd3 {[%clk
0:00:03.5]} 48... Nb2+ {[%clk 0:00:06.4]} 49. Kc2 {[%clk 0:00:03.9]} 49... Nc4
{[%clk 0:00:06.6]} 50. Kd3 {[%clk 0:00:03.2]} 50... Nb2+ {[%clk 0:00:03.3]} 51.
Kc2 {[%clk 0:00:03.3]} 51... Na4 {[%clk 0:00:03]} 52. Bxd6 {[%clk 0:00:02.8]}
52... Kf4 {[%clk 0:00:03.4]} 53. fxg4 {[%clk 0:00:03.2]} 53... Kxe4 {[%clk
0:00:03]} 54. g5 {[%clk 0:00:03.3]} 54... Kf5 {[%clk 0:00:03.5]} 55. g6 {[%clk
0:00:03.9]} 55... Kxg6 {[%clk 0:00:03.7]} 56. Bxe5 {[%clk 0:00:04.4]} 56... Nb6
{[%clk 0:00:04.2]} 57. Bd6 {[%clk 0:00:04.5]} 57... Nd7 {[%clk 0:00:05.1]} 58.
Bxc5 {[%clk 0:00:04.6]} 58... Nxc5 {[%clk 0:00:05.3]} 59. g4 {[%clk 0:00:05.5]}
59... Ne6 {[%clk 0:00:06.2]} 60. g5 {[%clk 0:00:06.4]} 60... Nxg5 {[%clk
0:00:07]} 1/2-1/2

[Event "*** Titled Tuesday Blitz"]
[Site "Chess.com"]
[Date "2020.11.24"]
[Round "5"]
[White "orestn"]
[Black "bazar-wokzal"]
[Result "0-1"]
[WhiteElo "2289"]
[BlackElo "2523"]
[TimeControl "180+1"]
[EndTime "11:13:05 PST"]
[Termination "bazar-wokzal won on time"]

1. e4 {[%clk 0:03:00.9]} 1... Nc6 {[%clk 0:02:59.6]} 2. Nf3 {[%clk 0:03:00.2]}
2... d5 {[%clk 0:03:00]} 3. exd5 {[%clk 0:03:01]} 3... Qxd5 {[%clk 0:03:00.5]}
4. Nc3 {[%clk 0:03:00.9]} 4... Qa5 {[%clk 0:03:01.2]} 5. Bb5 {[%clk 0:03:00.8]}
5... Bd7 {[%clk 0:03:01.4]} 6. Qe2 {[%clk 0:02:57.5]} 6... a6 {[%clk 0:03:00.7]}
7. Ba4 {[%clk 0:02:53.3]} 7... Qh5 {[%clk 0:03:00.2]} 8. Ne4 {[%clk 0:02:35.6]}
8... Nf6 {[%clk 0:02:44.4]} 9. Ng3 {[%clk 0:02:34.9]} 9... Qa5 {[%clk
0:02:42.9]} 10. Bb3 {[%clk 0:02:32.4]} 10... Bg4 {[%clk 0:02:33.9]} 11. c3
{[%clk 0:02:29.9]} 11... O-O-O {[%clk 0:02:30]} 12. O-O {[%clk 0:02:15]} 12...
h5 {[%clk 0:02:10.3]} 13. h3 {[%clk 0:01:59.1]} 13... h4 {[%clk 0:02:09]} 14.
Ne4 {[%clk 0:01:51.2]} 14... Bh5 {[%clk 0:01:59.8]} 15. d4 {[%clk 0:01:29.5]}
15... Qf5 {[%clk 0:01:43.9]} 16. Neg5 {[%clk 0:01:22.3]} 16... e6 {[%clk
0:01:30]} 17. Bc2 {[%clk 0:01:09.1]} 17... Qd5 {[%clk 0:01:20.9]} 18. Bb3 {[%clk
0:01:08.4]} 18... Qd6 {[%clk 0:01:16.5]} 19. Re1 {[%clk 0:01:00.6]} 19... Be7
{[%clk 0:01:15]} 20. Qc2 {[%clk 0:00:52.9]} 20... Nd5 {[%clk 0:01:05.9]} 21. Ne5
{[%clk 0:00:44.8]} 21... Bxg5 {[%clk 0:00:57.7]} 22. Nxc6 {[%clk 0:00:41.2]}
22... Bxc1 {[%clk 0:00:48]} 23. Nxd8 {[%clk 0:00:37.5]} 23... Bf4 {[%clk
0:00:45.2]} 24. Nxb7 {[%clk 0:00:22.1]} 24... Kxb7 {[%clk 0:00:44.1]} 25. Qe4
{[%clk 0:00:22.4]} 25... Bg6 {[%clk 0:00:42]} 26. Qf3 {[%clk 0:00:21.8]} 26...
c6 {[%clk 0:00:42.2]} 27. c4 {[%clk 0:00:17.6]} 27... Nb4 {[%clk 0:00:40.6]} 28.
d5 {[%clk 0:00:17.9]} 28... cxd5 {[%clk 0:00:38.2]} 29. cxd5 {[%clk 0:00:17.8]}
29... Nxd5 {[%clk 0:00:38.1]} 30. Rad1 {[%clk 0:00:16.5]} 30... Rd8 {[%clk
0:00:37.2]} 31. Rd4 {[%clk 0:00:09.9]} 31... Bg5 {[%clk 0:00:32.5]} 32. Red1
{[%clk 0:00:09.4]} 32... Qb6 {[%clk 0:00:17.4]} 33. Bxd5+ {[%clk 0:00:08.2]}
33... exd5 {[%clk 0:00:17]} 34. Rxd5 {[%clk 0:00:08.6]} 34... Rxd5 {[%clk
0:00:13.3]} 35. Qxd5+ {[%clk 0:00:08.2]} 35... Qc6 {[%clk 0:00:12]} 36. Qxg5
{[%clk 0:00:07.8]} 36... a5 {[%clk 0:00:11]} 37. Qxh4 {[%clk 0:00:07.6]} 37...
Qc2 {[%clk 0:00:09.9]} 38. Qd4 {[%clk 0:00:06.7]} 38... Qc6 {[%clk 0:00:08.8]}
39. Qd5 {[%clk 0:00:06.5]} 39... Qxd5 {[%clk 0:00:08.3]} 40. Rxd5 {[%clk
0:00:06.5]} 40... a4 {[%clk 0:00:09.2]} 41. Ra5 {[%clk 0:00:06.5]} 41... Bc2
{[%clk 0:00:07.2]} 42. b3 {[%clk 0:00:06]} 42... axb3 {[%clk 0:00:06.1]} 43.
axb3 {[%clk 0:00:06.3]} 43... Kb6 {[%clk 0:00:06.7]} 44. Ra4 {[%clk 0:00:05.8]}
44... Kb5 {[%clk 0:00:06.2]} 45. Ra7 {[%clk 0:00:05.6]} 45... Bxb3 {[%clk
0:00:06]} 46. f4 {[%clk 0:00:05.5]} 46... Be6 {[%clk 0:00:05.7]} 47. Kf2 {[%clk
0:00:05.6]} 47... Kc5 {[%clk 0:00:06.1]} 48. g4 {[%clk 0:00:05.7]} 48... Kd6
{[%clk 0:00:06.5]} 49. Kg3 {[%clk 0:00:06]} 49... Bd5 {[%clk 0:00:06.7]} 50. f5
{[%clk 0:00:06.1]} 50... Ke5 {[%clk 0:00:06.6]} 51. Ra5 {[%clk 0:00:06.2]} 51...
Ke4 {[%clk 0:00:06.2]} 52. Rxd5 {[%clk 0:00:05.4]} 52... Kxd5 {[%clk 0:00:06.3]}
53. Kf4 {[%clk 0:00:06.3]} 53... f6 {[%clk 0:00:05.4]} 54. h4 {[%clk 0:00:05.9]}
54... Kd6 {[%clk 0:00:05.1]} 55. g5 {[%clk 0:00:06]} 55... fxg5+ {[%clk
0:00:04.1]} 56. hxg5 {[%clk 0:00:06.3]} 56... Ke7 {[%clk 0:00:04.4]} 57. Ke5
{[%clk 0:00:06.3]} 57... Kf7 {[%clk 0:00:04.9]} 58. Kd6 {[%clk 0:00:06.1]} 58...
Kf8 {[%clk 0:00:05.4]} 59. Ke6 {[%clk 0:00:05.9]} 59... Ke8 {[%clk 0:00:05.9]}
60. f6 {[%clk 0:00:03.3]} 60... g6 {[%clk 0:00:05.3]} 0-1

[Event "*** Titled Tuesday Blitz"]
[Site "Chess.com"]
[Date "2020.11.24"]
[Round "5"]
[White "BegmuratovKh2010"]
[Black "Fortitudine"]
[Result "1/2-1/2"]
[WhiteElo "2503"]
[BlackElo "2362"]
[TimeControl "180+1"]
[EndTime "11:13:06 PST"]
[Termination "Game drawn - insufficient material"]

1. d4 {[%clk 0:00:33.6]} 1... Nf6 {[%clk 0:02:45.5]} 2. Nf3 {[%clk 0:00:32.6]}
2... g6 {[%clk 0:02:44.8]} 3. g3 {[%clk 0:00:32.9]} 3... Bg7 {[%clk 0:02:44.2]}
4. Bg2 {[%clk 0:00:33.8]} 4... c5 {[%clk 0:02:43.8]} 5. O-O {[%clk 0:00:34.7]}
5... cxd4 {[%clk 0:02:42.1]} 6. Nxd4 {[%clk 0:00:35.6]} 6... O-O {[%clk
0:02:42.2]} 7. Nb3 {[%clk 0:00:35.3]} 7... d6 {[%clk 0:02:42.3]} 8. c4 {[%clk
0:00:35.1]} 8... Nc6 {[%clk 0:02:42.7]} 9. Nc3 {[%clk 0:00:34.8]} 9... Be6
{[%clk 0:02:40.5]} 10. Nd5 {[%clk 0:00:34.1]} 10... Rc8 {[%clk 0:02:35.7]} 11.
Nd2 {[%clk 0:00:26.4]} 11... Qd7 {[%clk 0:02:33.3]} 12. Rb1 {[%clk 0:00:24.9]}
12... Bh3 {[%clk 0:02:22.9]} 13. e4 {[%clk 0:00:18.1]} 13... Bxg2 {[%clk
0:02:21.4]} 14. Kxg2 {[%clk 0:00:18.8]} 14... Rfd8 {[%clk 0:02:20.2]} 15. b3
{[%clk 0:00:18.2]} 15... e6 {[%clk 0:02:18]} 16. Nxf6+ {[%clk 0:00:17.5]} 16...
Bxf6 {[%clk 0:02:18.9]} 17. Nf3 {[%clk 0:00:17.8]} 17... Qe7 {[%clk 0:02:17.5]}
18. Be3 {[%clk 0:00:16.8]} 18... b6 {[%clk 0:02:17]} 19. Qe2 {[%clk 0:00:15]}
19... d5 {[%clk 0:02:15]} 20. cxd5 {[%clk 0:00:14.7]} 20... exd5 {[%clk
0:02:15.3]} 21. exd5 {[%clk 0:00:15.6]} 21... Rxd5 {[%clk 0:02:15.3]} 22. Rbc1
{[%clk 0:00:15.1]} 22... Rdd8 {[%clk 0:02:10]} 23. Rfd1 {[%clk 0:00:13.8]} 23...
Rxd1 {[%clk 0:01:53.9]} 24. Qxd1 {[%clk 0:00:14.7]} 24... Rd8 {[%clk 0:01:45.8]}
25. Qe2 {[%clk 0:00:14]} 25... Ne5 {[%clk 0:01:41.8]} 26. Nxe5 {[%clk
0:00:12.9]} 26... Qxe5 {[%clk 0:01:40.8]} 27. Rc4 {[%clk 0:00:12.5]} 27... Qd5+
{[%clk 0:01:39.7]} 28. Qf3 {[%clk 0:00:12]} 28... Qxf3+ {[%clk 0:01:38.8]} 29.
Kxf3 {[%clk 0:00:12.9]} 29... Rd7 {[%clk 0:01:39.3]} 30. Rc6 {[%clk 0:00:12.2]}
30... Kg7 {[%clk 0:01:39]} 31. h4 {[%clk 0:00:10.7]} 31... h5 {[%clk 0:01:39.1]}
32. a4 {[%clk 0:00:08.7]} 32... Re7 {[%clk 0:01:34.4]} 33. b4 {[%clk 0:00:08.3]}
33... Rb7 {[%clk 0:01:32.9]} 34. a5 {[%clk 0:00:07.9]} 34... bxa5 {[%clk
0:01:33]} 35. bxa5 {[%clk 0:00:08.8]} 35... Bd8 {[%clk 0:01:30.6]} 36. Bd4+
{[%clk 0:00:08.2]} 36... f6 {[%clk 0:01:28.1]} 37. a6 {[%clk 0:00:07.1]} 37...
Rd7 {[%clk 0:01:28]} 38. Bc5 {[%clk 0:00:07.1]} 38... Kf7 {[%clk 0:01:27]} 39.
Rc8 {[%clk 0:00:06.4]} 39... Bb6 {[%clk 0:01:21.4]} 40. Bxb6 {[%clk 0:00:05.9]}
40... axb6 {[%clk 0:01:22.3]} 41. Rc6 {[%clk 0:00:05.5]} 41... b5 {[%clk
0:01:19]} 42. Rb6 {[%clk 0:00:05.4]} 42... Rd3+ {[%clk 0:01:14.5]} 43. Ke2
{[%clk 0:00:03.2]} 43... Ra3 {[%clk 0:01:15]} 44. Rb7+ {[%clk 0:00:03.5]} 44...
Ke6 {[%clk 0:01:14.1]} 45. a7 {[%clk 0:00:04.4]} 45... b4 {[%clk 0:01:09.8]} 46.
Kd2 {[%clk 0:00:03.7]} 46... Ra2+ {[%clk 0:01:09.1]} 47. Kd3 {[%clk 0:00:02.9]}
47... Kd5 {[%clk 0:01:09.6]} 48. Rd7+ {[%clk 0:00:01.8]} 48... Kc6 {[%clk
0:01:10]} 49. Rf7 {[%clk 0:00:01.8]} 49... Kd5 {[%clk 0:01:07.2]} 50. Rxf6
{[%clk 0:00:02.7]} 50... Ra3+ {[%clk 0:01:07]} 51. Kc2 {[%clk 0:00:01.8]} 51...
Rxa7 {[%clk 0:01:06.9]} 52. Kb3 {[%clk 0:00:02.7]} 52... Rg7 {[%clk 0:01:05.5]}
53. Kxb4 {[%clk 0:00:01.9]} 53... Ke5 {[%clk 0:01:06.1]} 54. Rf4 {[%clk
0:00:02]} 54... g5 {[%clk 0:01:05.8]} 55. hxg5 {[%clk 0:00:02.9]} 55... Rxg5
{[%clk 0:01:06.7]} 56. Rh4 {[%clk 0:00:03.2]} 56... Kf6 {[%clk 0:01:05.9]} 57.
Kc3 {[%clk 0:00:02.3]} 57... Kg6 {[%clk 0:01:05.4]} 58. Kd3 {[%clk 0:00:03.2]}
58... Rd5+ {[%clk 0:01:04.8]} 59. Ke3 {[%clk 0:00:04.1]} 59... Ra5 {[%clk
0:01:04.4]} 60. Kf3 {[%clk 0:00:05]} 60... Ra3+ {[%clk 0:01:04.3]} 61. Kg2
{[%clk 0:00:05.9]} 61... Ra2 {[%clk 0:01:04.7]} 62. Kg1 {[%clk 0:00:05.2]} 62...
Ra3 {[%clk 0:01:04.8]} 63. Rf4 {[%clk 0:00:03.9]} 63... Ra2 {[%clk 0:01:04.5]}
64. Kg2 {[%clk 0:00:04.8]} 64... Ra3 {[%clk 0:01:04.8]} 65. Rf3 {[%clk
0:00:05.7]} 65... Ra4 {[%clk 0:01:05.2]} 66. Re3 {[%clk 0:00:05.6]} 66... Rb4
{[%clk 0:01:04.9]} 67. f4 {[%clk 0:00:05]} 67... h4 {[%clk 0:01:02.5]} 68. gxh4
{[%clk 0:00:02.8]} 68... Rxf4 {[%clk 0:01:01.8]} 69. Kg3 {[%clk 0:00:03.7]}
69... Rf1 {[%clk 0:01:01.4]} 70. Re6+ {[%clk 0:00:02.9]} 70... Kh5 {[%clk
0:01:00.1]} 71. Re5+ {[%clk 0:00:02.3]} 71... Kh6 {[%clk 0:00:59]} 72. Kg4
{[%clk 0:00:01.8]} 72... Rg1+ {[%clk 0:00:59]} 73. Kf5 {[%clk 0:00:02.7]} 73...
Kh5 {[%clk 0:00:57.7]} 74. Re6 {[%clk 0:00:03.6]} 74... Kxh4 {[%clk 0:00:57.3]}
75. Rh6+ {[%clk 0:00:02.2]} 75... Kg3 {[%clk 0:00:57.8]} 76. Rg6+ {[%clk
0:00:03.1]} 76... Kf2 {[%clk 0:00:58.5]} 77. Rxg1 {[%clk 0:00:02.8]} 77... Kxg1
{[%clk 0:00:59.4]} 1/2-1/2